[Event "World Chess Trophy 2018"]
[Site "Tenerife"]
[Date "2018.06.19"]
[Round "4"]
[White "Ciampi, Vincenzo"]
[Black "Baete, Guy"]
[Result "1-0"]
[ECO "A01"]
[WhiteElo "1959"]
[BlackElo "1861"]
[Annotator "NA"]
[PlyCount "120"]
[EventDate "2018.06.17"]
[EventType "swiss"]
[EventCountry "ESP"]
[SourceTitle "playchess.com"]
[Source "ChessBase"]
[SourceQuality "1"]
[TimeControl "5400+30"]

1. b3 {[%emt 0:00:00]} Nf6 {[%emt 0:01:29]} 2. Bb2 {[%emt 0:00:00]} d6 {[%emt 0:00:24]} 3. g3 {[%emt 0:01:32]} g6 {[%emt 0:00:18] A01: Nimzowitsch-Larsen Opening} 4. Bg2 {[%emt 0:00:23]} Bg7 {[%emt 0:00:04]} 5. d4 {[%emt 0:00:49]} O-O {[%emt 0:00:13]} (5... c5 6. dxc5 Qa5+ 7. Qd2 Qxc5 8. c4 Nc6 9. Nc3 O-O 10. Nh3 Qd4 11. Qxd4 Nxd4 {½-½ (32) Lenderman,A (2611)-Cornette,M (2611) chess.com INT 2018}) 6. e4 {[%emt 0:00:37]} Nbd7 {[%emt 0:00:35]} 7. Ne2 {[%emt 0:00:44]} e5 {[%emt 0:00:25]} 8. dxe5 {[%emt 0:03:11]} Nxe5 {[%emt 0:00:11]} 9. h3 {[%emt 0:01:39]} Nfd7 $146 {[%emt 0:02:45]} ({Predecessor:} 9... Re8 10. Nbc3 {1-0 (38) Bellon Lopez,J (2421)-Hoffman,A (2491) Mislata 2000}) 10. Nbc3 {[%emt 0:06:50]} Nb6 {[%emt 0:00:28]} 11. a4 {[%emt 0:02:10]} Bd7 {[%emt 0:00:59]} 12. a5 {[%emt 0:01:11]} Nc8 {[%emt 0:00:09]} 13. f4 {[%emt 0:01:58]} Nc6 {[%emt 0:00:10]} 14. O-O {[%emt 0:00:52]} a6 {[%emt 0:02:45]} 15. Kh2 {[%emt 0:14:13]} Rb8 {[%emt 0:02:08]} 16. Qc1 {[%emt 0:03:57]} N6e7 {[%emt 0:04:47]} 17. Nd5 {[%emt 0:03:07]} Nxd5 {[%emt 0:00:11]} 18. exd5 {[%emt 0:01:10]} Re8 {[%emt 0:01:51]} 19. Bxg7 {[%emt 0:00:52]} Kxg7 {[%emt 0:00:02]} 20. Nd4 {[%emt 0:00:57]} Qf6 {[%emt 0:00:30]} 21. Qd2 {[%emt 0:00:42]} h5 {[%emt 0:08:45]} 22. Rae1 {[%emt 0:04:19]} Rxe1 {[%emt 0:03:41]} 23. Rxe1 {[%emt 0:00:24]} Ne7 {[%emt 0:00:08]} 24. Nf3 {[%emt 0:04:59]} Re8 {[%emt 0:01:52]} 25. Ng5 {[%emt 0:07:01]} Nf5 {[%emt 0:00:40]} 26. Rxe8 {[%emt 0:00:29]} Bxe8 {[%emt 0:00:04]} 27. Qe1 {[%emt 0:03:05]} Qe7 {[%emt 0:00:50]} 28. Qc3+ {[%emt 0:01:45]} Kg8 {[%emt 0:01:41]} 29. Ne4 {[%emt 0:04:23]} Ng7 {[%emt 0:00:17]} 30. h4 {[%emt 0:06:42]} f5 {[%emt 0:02:02]} 31. Ng5 {[%emt 0:00:50]} Bf7 {[%emt 0:00:44]} 32. Qb4 {[%emt 0:05:43]} Ne8 {[%emt 0:00:28]} 33. Qxb7 {[%emt 0:03:26]} Qe2 {[%emt 0:00:11]} 34. Nxf7 {[%emt 0:04:24]} Kxf7 {[%emt 0:00:37]} 35. Qc8 {[%emt 0:01:20]} Ke7 {[%emt 0:03:43]} 36. b4 {[%emt 0:06:37]} Qe3 {[%emt 0:07:45]} 37. Qe6+ {[%emt 0:00:41]} Qxe6 {[%emt 0:00:06]} 38. dxe6 {[%emt 0:00:06]} c5 {[%emt 0:01:01]} 39. bxc5 {[%emt 0:03:23]} dxc5 {[%emt 0:00:04]} 40. Bf1 {[%emt 0:00:16]} Nc7 {[%emt 0:00:03]} 41. Bc4 {[%emt 0:00:18]} Nxe6 {[%emt 0:01:31]} (41... Kd6 {kämpft weiter.} 42. Kg2 Ke7) 42. Bxa6 {[%emt 0:00:11]} Kd6 {[%emt 0:01:35]} 43. Bc4 {[%emt 0:00:40]} Nd4 {[%emt 0:00:41]} 44. Bf7 {[%emt 0:01:58]} Nxc2 {[%emt 0:00:09]} 45. Bxg6 {[%emt 0:00:41]} Ne3 {[%emt 0:00:27]} 46. Bxh5 {[%emt 0:00:51]} c4 {[%emt 0:00:07]} 47. Be2 {[%emt 0:01:00]} c3 {[%emt 0:00:11]} 48. Bd3 {[%emt 0:00:05]} c2 {[%emt 0:00:23]} 49. Bxc2 {[%emt 0:00:07]} Nxc2 {[%emt 0:00:01]} 50. h5 {[%emt 0:00:11]} Ne3 $18 {[%emt 0:00:02]} 51. Kh3 {[%emt 0:00:20]} Ke6 {[%emt 0:00:32]} 52. a6 {[%emt 0:00:13]} Nd5 {[%emt 0:00:11]} 53. a7 {[%emt 0:00:13]} Nc7 {[%emt 0:00:03]} 54. g4 {[%emt 0:00:34]} Kf6 {[%emt 0:01:44]} 55. g5+ {[%emt 0:00:17]} Kf7 {[%emt 0:01:37]} 56. Kg3 {[%emt 0:00:05]} Ke6 {[%emt 0:00:19]} 57. Kf3 {[%emt 0:00:10]} Ke7 {[%emt 0:00:16]} 58. Ke3 {[%emt 0:00:19]} Ke6 {[%emt 0:00:27]} 59. Kd3 {[%emt 0:00:10]} Kf7 {[%emt 0:01:11]} 60. Kc4 {[%emt 0:00:08]} Ke8 {[%emt 0:53:57]} 1-0

[Event "World Chess Trophy 2018"]
[Site "Tenerife"]
[Date "2018.06.19"]
[Round "4"]
[White "Pirrello, Christian"]
[Black "Rutherford, William"]
[Result "0-1"]
[ECO "D36"]
[WhiteElo "1935"]
[BlackElo "1959"]
[Annotator "NA"]
[PlyCount "72"]
[EventDate "2018.06.17"]
[EventType "swiss"]
[EventCountry "ESP"]
[SourceTitle "playchess.com"]
[Source "ChessBase"]
[SourceQuality "1"]
[TimeControl "5400+30"]

1. d4 {[%emt 0:00:00]} d5 {[%emt 0:00:13]} 2. c4 {[%emt 0:00:00]} e6 {[%emt 0:00:09]} 3. Nc3 {[%emt 0:00:00]} Nf6 {[%emt 0:00:20]} 4. cxd5 {[%emt 0:00:01]} exd5 {[%emt 0:00:06]} 5. Bg5 {[%emt 0:00:06]} c6 {[%emt 0:00:52]} 6. Qc2 {[%emt 0:00:51]} g6 {[%emt 0:02:46]} 7. Bxf6 {[%emt 0:15:27]} Qxf6 {[%emt 0:00:09]} 8. e3 {[%emt 0:02:22]} Bf5 {[%emt 0:02:54]} 9. Bd3 {[%emt 0:00:09]} Bxd3 {[%emt 0:00:58]} 10. Qxd3 {[%emt 0:00:02]} Nd7 {[%emt 0:06:05]} 11. Nf3 {[%emt 0:01:06]} Bb4 {[%emt 0:07:28]} 12. O-O {[%emt 0:00:26]} O-O {[%emt 0:02:30]} 13. Rfc1 {[%emt 0:02:02]} Rfe8 {[%emt 0:03:12]} 14. a3 {[%emt 0:02:08]} Bd6 {[%emt 0:00:56]} 15. Nd2 {[%emt 0:06:18]} Qg7 {[%emt 0:05:04]} 16. b4 {[%emt 0:01:25]} Qh6 {[%emt 0:01:19]} 17. Nf3 {[%emt 0:00:57]} Nf6 {[%emt 0:02:15]} 18. b5 {[%emt 0:04:58]} Ne4 {[%emt 0:08:20]} 19. h3 {[%emt 0:03:13]} Re6 {[%emt 0:03:08]} 20. bxc6 {[%emt 0:00:41]} bxc6 {[%emt 0:00:18]} 21. Qd1 {[%emt 0:03:56]} Rae8 {[%emt 0:05:40]} 22. Nxe4 {[%emt 0:00:44]} dxe4 {[%emt 0:02:39]} 23. Nd2 {[%emt 0:01:39]} g5 {[%emt 0:06:56]} 24. Nb3 {[%emt 0:04:04]} g4 {[%emt 0:06:11]} 25. Qxg4+ {[%emt 0:02:21]} Rg6 {[%emt 0:00:09]} 26. Qf5 {[%emt 0:02:24]} Rg5 {[%emt 0:01:23]} 27. Qd7 {[%emt 0:00:41]} Re6 {[%emt 0:00:14]} 28. Nc5 {[%emt 0:06:30]} Reg6 {[%emt 0:03:17]} 29. Qe8+ {[%emt 0:04:55]} Kg7 {[%emt 0:00:50]} 30. Qxe4 {[%emt 0:01:14]} Qxh3 {[%emt 0:00:54]} 31. Kf1 {[%emt 0:00:32]} Rxg2 {[%emt 0:00:55]} 32. Ke2 {[%emt 0:01:28]} Rxf2+ {[%emt 0:01:23]} 33. Kd3 {[%emt 0:00:39]} Qh5 {[%emt 0:02:49]} 34. Kc4 {[%emt 0:06:25]} Bxc5 {[%emt 0:02:57]} 35. dxc5 {[%emt 0:00:45]} Rg4 {[%emt 0:01:03]} 36. Rg1 {[%emt 0:00:20]} Qd5+ {[%emt 0:00:06]} 0-1

[Event "World Chess Trophy 2018"]
[Site "Tenerife"]
[Date "2018.06.19"]
[Round "4"]
[White "Mamani Beltran, Deniman"]
[Black "Grigioni, Giulio"]
[Result "1-0"]
[ECO "B12"]
[WhiteElo "1623"]
[BlackElo "1818"]
[Annotator "NA"]
[PlyCount "58"]
[EventDate "2018.06.17"]
[EventType "swiss"]
[EventCountry "ESP"]
[SourceTitle "playchess.com"]
[Source "ChessBase"]
[SourceQuality "1"]
[TimeControl "5400+30"]

1. e4 {[%emt 0:00:00]} c6 {[%emt 0:00:22]} 2. d4 {[%emt 0:00:00]} d5 {[%emt 0:00:07]} 3. e5 {[%emt 0:00:00]} c5 {[%emt 0:00:14]} 4. c3 {[%emt 0:00:06]} Nc6 {[%emt 0:00:22]} 5. f4 {[%emt 0:00:27]} cxd4 {[%emt 0:01:22]} 6. cxd4 {[%emt 0:00:10]} Qb6 {[%emt 0:00:42]} 7. Nc3 {[%emt 0:01:01]} e6 {[%emt 0:01:55]} 8. Nf3 {[%emt 0:00:06]} Nh6 {[%emt 0:01:35]} 9. Bd3 {[%emt 0:02:47]} Bd7 {[%emt 0:01:02]} 10. Bc2 {[%emt 0:00:07]} Be7 {[%emt 0:04:52]} 11. O-O {[%emt 0:00:18]} f5 {[%emt 0:10:10]} 12. h3 {[%emt 0:03:19]} Nf7 {[%emt 0:05:10]} 13. Na4 {[%emt 0:02:16]} Qc7 {[%emt 0:06:21]} 14. Be3 {[%emt 0:01:08]} O-O {[%emt 0:04:26]} 15. Rc1 {[%emt 0:00:35]} b5 {[%emt 0:01:58]} 16. Nc3 {[%emt 0:00:28]} Qb6 {[%emt 0:00:36]} 17. a3 {[%emt 0:00:18]} Na5 {[%emt 0:01:06]} 18. Nd2 {[%emt 0:02:18]} Nc4 {[%emt 0:08:53]} 19. Nxc4 {[%emt 0:00:41]} bxc4 {[%emt 0:02:19]} 20. Rb1 {[%emt 0:01:29]} a5 {[%emt 0:00:54]} 21. Qe2 {[%emt 0:02:17]} a4 {[%emt 0:01:21]} 22. Rfd1 {[%emt 0:05:52]} Bc6 {[%emt 0:03:46]} 23. g3 {[%emt 1:15:47] Qa5Bd2 [%clk 1:13:41]} Qa7 {[%emt 0:00:25] Be1 [%clk 1:14:02] Nd8 [%clk 0:40:09]} 24. Kh2 {[%emt 0:00:00]} Be8 {[%emt 0:03:05]} 25. Qf3 {[%emt 0:00:00] Nc6 [%clk 0:37:56] Bf2 [%clk 1:07:04]} Qa5 {[%emt 0:04:47]} 26. Qg2 {[%emt 0:00:00] Na7 [%clk 0:34:54] Be1 [%clk 1:03:31]} Qb6 {[%emt 0:08:37]} 27. Bxa4 {[%emt 0:00:00] Nb5 [%clk 0:25:42] Nxd5 [%clk 1:01:13] exd5 [%clk 0:22:13] Qxd5+ [%clk 1:00:51]} Kh8 {[%emt 0:04:58] Qxa8 [%clk 1:01:04]} 28. Bc6 {[%emt 0:00:00]} Qa5 {[%emt 0:00:00] Qb7 [%clk 0:21:46] d5 [%clk 1:00:36]} 29. Bxd5 {[%emt 0:00:00]} Qb5 {[%emt 0:00:00] Qa7 [%clk 0:15:56] Rxd5 [%clk 1:00:48] Rb8 [%clk 0:16:10] Qd7 [%clk 1:00:44]} 1-0

[Event "World Chess Trophy 2018"]
[Site "Tenerife"]
[Date "2018.06.19"]
[Round "4"]
[White "Baez Luis, Adrian"]
[Black "Harstad, Christian"]
[Result "0-1"]
[ECO "B87"]
[WhiteElo "1621"]
[BlackElo "1985"]
[Annotator "NA"]
[PlyCount "64"]
[EventDate "2018.06.17"]
[EventType "swiss"]
[EventCountry "ESP"]
[SourceTitle "playchess.com"]
[Source "ChessBase"]
[SourceQuality "1"]
[TimeControl "5400+30"]

1. e4 {[%emt 0:00:00]} c5 {[%emt 0:00:03]} 2. Nf3 {[%emt 0:00:00]} d6 {[%emt 0:00:04]} 3. d4 {[%emt 0:00:00]} cxd4 {[%emt 0:00:04]} 4. Nxd4 {[%emt 0:00:00]} Nf6 {[%emt 0:00:06]} 5. Nc3 {[%emt 0:00:00]} a6 {[%emt 0:00:08]} 6. Bc4 {[%emt 0:00:11]} e6 {[%emt 0:00:10]} 7. Bb3 {[%emt 0:00:02]} b5 {[%emt 0:00:58]} 8. Bg5 {[%emt 0:16:20]} Be7 {[%emt 0:05:28]} 9. f4 {[%emt 0:00:44] B87: Sicilian Scheveningen/Najdorf: 6 Bc4, with early ...b5} (9. Qf3 Qc7 10. e5 Bb7 11. exd6 Bxd6 12. Qe3 Bc5 13. O-O-O Nc6 14. Bxf6 gxf6 15. Nd5 Qe5 16. Qxe5 Nxe5 17. Nc7+ Ke7 18. Nxa8 Bxg2 {½-½ (28) Radjabov,T (2710)-Topalov,V (2741) Shamkir 2017 CBM 178 [Yermolinsky,A]}) 9... h6 {[%emt 0:05:05]} 10. Bxf6 {[%emt 0:03:42]} Bxf6 {[%emt 0:00:32]} 11. f5 $146 {[%emt 0:01:23]} ({Predecessor:} 11. Qd3 Qb6 12. O-O-O Nd7 13. Rhe1 Nc5 14. Qe3 Bb7 15. Kb1 Nxb3 16. Nxb3 Qxe3 17. Rxe3 Bxc3 18. bxc3 {0-1 (40) Loechel,T-Sarchisov,S (2019) Germany 2008}) 11... Qb6 {[%emt 0:11:22]} 12. Nce2 {[%emt 0:08:08]} exf5 {[%emt 0:04:53]} 13. exf5 {[%emt 0:04:06]} Bh4+ {[%emt 0:03:26]} 14. g3 {[%emt 0:02:32]} Bf6 {[%emt 0:00:14]} 15. Qd2 {[%emt 0:00:53]} O-O {[%emt 0:02:09]} 16. O-O-O {[%emt 0:00:50]} Bb7 {[%emt 0:01:15]} 17. Rhf1 {[%emt 0:00:50]} a5 {[%emt 0:02:09]} 18. Nf3 {[%emt 0:07:03]} a4 {[%emt 0:05:43]} 19. Bd5 {[%emt 0:01:17]} b4 {[%emt 0:04:01]} 20. Bxb7 {[%emt 0:04:17]} Qxb7 {[%emt 0:00:07]} 21. Qd5 {[%emt 0:07:17]} Nc6 {[%emt 0:05:38]} 22. Ned4 {[%emt 0:03:03]} Rfc8 {[%emt 0:05:00]} 23. Nb5 {[%emt 0:10:48]} b3 {[%emt 0:05:23]} 24. axb3 {[%emt 0:07:11]} axb3 {[%emt 0:01:19]} 25. c3 {[%emt 0:07:37]} Qa6 {[%emt 0:03:58]} 26. Qxb3 {[%emt 0:03:55]} Rab8 {[%emt 0:01:47]} 27. Qc4 {[%emt 0:08:57]} Rxb5 {[%emt 0:03:30]} 28. Rd5 {[%emt 0:00:43]} Qa1+ $19 {[%emt 0:02:16]} 29. Kd2 {[%emt 0:02:09]} Qxb2+ {[%emt 0:00:11]} 30. Ke3 {[%emt 0:00:29]} Rxd5 {[%emt 0:01:31]} 31. Qxd5 {[%emt 0:00:11]} Ne7 {[%emt 0:01:14]} 32. Qxd6 {[%emt 0:00:30]} Nxf5+ {[%emt 0:26:46]} 0-1

[Event "World Chess Trophy 2018"]
[Site "Tenerife"]
[Date "2018.06.21"]
[Round "5"]
[White "Cacciola, Alfredo"]
[Black "Potterat, Marc"]
[Result "0-1"]
[ECO "B98"]
[WhiteElo "2219"]
[BlackElo "2130"]
[Annotator "NA"]
[PlyCount "116"]
[EventDate "2018.06.17"]
[EventType "swiss"]
[EventCountry "ESP"]
[SourceTitle "playchess.com"]
[Source "ChessBase"]
[SourceQuality "1"]
[TimeControl "5400+30"]

1. e4 {[%emt 0:00:00]} c5 {[%emt 0:06:00]} 2. Nf3 {[%emt 0:00:00]} d6 {[%emt 0:00:08]} 3. d4 {[%emt 0:00:00]} cxd4 {[%emt 0:00:07]} 4. Nxd4 {[%emt 0:00:00]} Nf6 {[%emt 0:00:11]} 5. Nc3 {[%emt 0:00:00]} a6 {[%emt 0:00:07]} 6. Bg5 {[%emt 0:00:37]} e6 {[%emt 0:00:36]} 7. f4 {[%emt 0:00:08]} h6 {[%emt 0:01:15]} 8. Bh4 {[%emt 0:00:06]} Be7 {[%emt 0:06:29]} 9. Qf3 {[%emt 0:00:18]} g5 {[%emt 0:02:59]} 10. fxg5 {[%emt 0:00:21]} Nh7 {[%emt 0:04:08] B98: Sicilian Najdorf: 6 Bg5 e6 7 f4 Be7, sidelines} (10... hxg5 $14 11. Bxg5 Nbd7) (10... Nfd7 11. Nxe6 fxe6 12. Qh5+ Kf8 13. Bb5 Rh7 14. O-O+ Kg8 15. g6 Rg7 16. Rf7 Bxh4 17. Qxh6 Rxf7 18. gxf7+ Kxf7 19. Rf1+ Bf6 20. Qh7+ Ke8 21. Qg6+ Kf8 {½-½ (33) Zhigalko,S (2649)-Safarli,E (2645) Nakhchivan 2012}) 11. Bc4 {[%emt 0:09:09]} Nxg5 {[%emt 0:05:02] [#]} 12. Bxg5 {[%emt 0:11:47]} ({Besser ist} 12. Qh5 $1 $16 Qb6 13. O-O-O) 12... hxg5 {[%emt 0:05:43]} 13. Rf1 $1 {[%emt 0:03:12]} Rh7 $1 {[%emt 0:00:22]} 14. O-O-O {[%emt 0:01:45]} Qc7 {[%emt 0:06:43]} 15. Bd3 {[%emt 0:03:46]} Nd7 {[%emt 0:02:10]} 16. h4 $146 {[%emt 0:14:01]} ({Predecessor:} 16. Qg3 Ne5 17. Be2 Bd7 18. Nf3 {1-0 (40) Hoover,W-Fuster,G Canada 1963}) 16... Ne5 {[%emt 0:00:45]} 17. Qg3 {[%emt 0:00:23]} g4 {[%emt 0:04:20]} 18. h5 $2 {[%emt 0:07:49]} (18. Nf3 $1 $11) 18... Bd7 {[%emt 0:04:47]} 19. Kb1 {[%emt 0:03:12]} Bc6 {[%emt 0:05:18]} 20. Be2 {[%emt 0:02:09]} Rxh5 {[%emt 0:09:27]} 21. Rh1 {[%emt 0:01:05]} Rxh1 {[%emt 0:00:17]} 22. Rxh1 {[%emt 0:00:01]} O-O-O {[%emt 0:03:20]} 23. Bxg4 {[%emt 0:01:06]} Nxg4 {[%emt 0:03:54]} 24. Qxg4 {[%emt 0:00:25]} Qb6 {[%emt 0:04:29]} 25. Qg7 {[%emt 0:09:10]} Bd7 {[%emt 0:13:52]} 26. Qxf7 {[%emt 0:02:22]} Qxd4 {[%emt 0:01:15]} 27. Qxe7 {[%emt 0:00:06]} Re8 {[%emt 0:00:41]} 28. Qf7 {[%emt 0:02:05]} Bc6 {[%emt 0:02:49]} 29. a3 {[%emt 0:01:07]} Qe5 {[%emt 0:01:43]} 30. Rh7 {[%emt 0:11:52]} Kb8 {[%emt 0:00:02]} 31. Qc7+ {[%emt 0:00:54]} Ka8 {[%emt 0:00:32]} 32. Qg7 {[%emt 0:02:43]} Qf4 {[%emt 0:01:14]} 33. Qf7 {[%emt 0:01:32]} (33. Rh8 $16) 33... Qe5 {[%emt 0:00:26]} 34. Qg6 {[%emt 0:04:06]} d5 {[%emt 0:00:28]} 35. Rh5 {[%emt 0:01:25]} Qf4 {[%emt 0:00:02]} 36. exd5 {[%emt 0:01:43]} exd5 {[%emt 0:00:02]} 37. Rh1 {[%emt 0:00:21]} d4 {[%emt 0:00:17]} 38. Nd5 {[%emt 0:00:34]} Qe5 {[%emt 0:01:37]} 39. Nb4 {[%emt 0:04:32]} Be4 {[%emt 0:00:22]} 40. Qg4 {[%emt 0:00:20]} Qb5 {[%emt 0:02:24]} 41. Rd1 {[%emt 0:00:42]} a5 {[%emt 0:01:11]} 42. Nd3 {[%emt 0:00:01]} Bxd3 {[%emt 0:00:18]} 43. cxd3 {[%emt 0:00:35]} Qb3 {[%emt 0:00:19]} 44. Qf3 {[%emt 0:01:31]} Ka7 {[%emt 0:00:48]} 45. Rh1 {[%emt 0:01:39]} Re3 {[%emt 0:00:23]} 46. Qf5 {[%emt 0:00:23]} Qxd3+ {[%emt 0:01:29]} 47. Qxd3 {[%emt 0:00:02]} Rxd3 {[%emt 0:00:08]} 48. Rh3 {[%emt 0:01:06]} Rd2 {[%emt 0:00:17]} 49. Rg3 {[%emt 0:00:49]} Kb6 {[%emt 0:00:17]} 50. Kc1 {[%emt 0:00:13]} Re2 {[%emt 0:00:58]} 51. Rg4 {[%emt 0:00:52]} Kc5 {[%emt 0:00:34]} 52. Rg5+ {[%emt 0:00:01]} Kc4 {[%emt 0:00:14]} 53. Rg3 $2 {[%emt 0:01:10]} (53. a4 $15) 53... a4 {[%emt 0:00:14]} 54. Rg7 {[%emt 0:00:28]} b5 {[%emt 0:00:02]} 55. Rg8 $2 {[%emt 0:00:23]} (55. Rg3) 55... Kb3 {[%emt 0:01:36]} 56. Rg3+ {[%emt 0:00:56] [#]} Ka2 $1 {[%emt 0:00:09]} 57. Rd3 {[%emt 0:00:49]} Rxg2 {[%emt 0:01:36]} 58. Rxd4 {[%emt 0:00:08]} Rxb2 {[%emt 0:00:02]} 0-1

[Event "World Chess Trophy 2018"]
[Site "Tenerife"]
[Date "2018.06.21"]
[Round "5"]
[White "Kosov, Alexey"]
[Black "Kohlweyer, Bernd"]
[Result "1/2-1/2"]
[ECO "B94"]
[WhiteElo "2208"]
[BlackElo "2345"]
[Annotator "NA"]
[PlyCount "86"]
[EventDate "2018.06.17"]
[EventType "swiss"]
[EventCountry "ESP"]
[SourceTitle "playchess.com"]
[Source "ChessBase"]
[SourceQuality "1"]
[TimeControl "5400+30"]

1. e4 {[%emt 0:03:02]} c5 {[%emt 0:01:13]} 2. Nf3 {[%emt 0:00:15]} d6 {[%emt 0:00:09]} 3. d4 {[%emt 0:00:06]} cxd4 {[%emt 0:00:03]} 4. Nxd4 {[%emt 0:00:06]} Nf6 {[%emt 0:00:10]} 5. Nc3 {[%emt 0:00:06]} a6 {[%emt 0:00:05]} 6. Bg5 {[%emt 0:00:03]} Nbd7 {[%emt 0:00:26]} 7. f4 {[%emt 0:00:45]} Qc7 {[%emt 0:00:08] LiveBook: 359 Games} 8. Qf3 {[%emt 0:00:15] B94: Sicilian Najdorf: 6 Bg5 Nbd7} (8. g3 e6 9. Bg2 b5 10. e5 Bb7 11. exf6 gxf6 12. Nd5 Bxd5 13. Bxd5 exd5 14. Qe2+ Kd8 15. Bh4 Qc4 {1-0 (23) Zeng,C (2532)-Zhou,J (2615) Tianjin 2018}) 8... g6 {[%emt 0:01:12]} 9. O-O-O {[%emt 0:05:10]} Bg7 {[%emt 0:00:07]} 10. g4 {[%emt 0:00:49]} h6 $1 {[%emt 0:09:14]} 11. Bxf6 {[%emt 0:05:08]} Nxf6 {[%emt 0:00:11]} 12. Rg1 $146 {[%emt 0:19:29]} ({Predecessor:} 12. f5 Bd7 13. h4 Qa5 14. Nb3 Qe5 15. Bg2 b5 {½-½ (44) Can,I (2287)-Vucinic,G (2415) Paracin 2017}) 12... e5 {[%emt 0:15:09]} 13. Nde2 {[%emt 0:23:09]} exf4 {[%emt 0:13:02]} 14. Nxf4 {[%emt 0:00:02]} Be6 {[%emt 0:00:19]} 15. Nxe6 {[%emt 0:10:01]} fxe6 {[%emt 0:00:03]} 16. e5 {[%emt 0:00:39]} dxe5 {[%emt 0:00:56]} 17. g5 {[%emt 0:01:01]} hxg5 {[%emt 0:01:15]} 18. Ne4 {[%emt 0:07:15]} Nd5 {[%emt 0:04:02]} 19. Bh3 {[%emt 0:06:23]} Qe7 {[%emt 0:11:40]} 20. Bxe6 {[%emt 0:06:23]} Nf4 {[%emt 0:01:38]} 21. Bd7+ {[%emt 0:03:47]} Kf8 {[%emt 0:00:39]} 22. Ba4 {[%emt 0:01:00]} Rh3 {[%emt 0:10:23]} 23. Qf1 {[%emt 0:01:23]} Qb4 {[%emt 0:03:21]} 24. Nxg5 {[%emt 0:02:09]} Qxa4 {[%emt 0:00:12]} 25. Nxh3 {[%emt 0:01:20]} Qxa2 {[%emt 0:00:49]} 26. Nxf4 {[%emt 0:01:00]} Bh6 {[%emt 0:00:06]} 27. c3 {[%emt 0:01:15]} Bxf4+ {[%emt 0:01:04]} 28. Kc2 {[%emt 0:00:01]} Qa4+ {[%emt 0:06:02]} 29. Kb1 {[%emt 0:00:01]} Qe4+ {[%emt 0:00:08]} 30. Qd3 {[%emt 0:00:00]} Qxd3+ {[%emt 0:00:08]} 31. Rxd3 {[%emt 0:00:01]} Kf7 {[%emt 0:00:09]} 32. Rd7+ {[%emt 0:00:09]} Ke6 {[%emt 0:00:06]} 33. Rxb7 {[%emt 0:00:13]} g5 {[%emt 0:00:07]} 34. b4 {[%emt 0:02:50]} Kd5 {[%emt 0:00:24]} 35. Kb2 {[%emt 0:00:18]} Ke4 {[%emt 0:04:06]} 36. Rh7 {[%emt 0:00:42]} Kf3 {[%emt 0:00:13]} 37. c4 {[%emt 0:01:19]} (37. Rf7 $18 {has better winning chances.}) 37... e4 $18 {[%emt 0:00:22]} (37... Rf8 $16 38. Rf1+ Kg2) 38. Rf7 {[%emt 0:00:30]} e3 {[%emt 0:14:36]} 39. Rxg5 {[%emt 0:00:18]} Re8 {[%emt 0:00:08]} 40. Rg3+ {[%emt 0:00:49]} Ke4 {[%emt 0:00:06]} 41. Rg4 {[%emt 0:00:10]} e2 {[%emt 0:00:03]} 42. Rgxf4+ {[%emt 0:00:04]} Kd3 {[%emt 0:00:28]} 43. Rf1 {[%emt 0:00:59]} Ke4 {[%emt 0:07:18]} 1/2-1/2